[Event "*** Titled Tuesday Blitz"]
[Site "Chess.com"]
[Date "2021.03.09"]
[Round "4"]
[White "djano"]
[Black "ENajer77"]
[Result "1-0"]
[WhiteElo "2479"]
[BlackElo "2608"]
[TimeControl "180+1"]
[EndTime "10:42:53 PST"]
[Termination "djano won by resignation"]

1. e4 {[%clk 0:03:00.9]} 1... c6 {[%clk 0:02:59]} 2. d4 {[%clk 0:02:58.6]} 2...
d5 {[%clk 0:02:59.5]} 3. exd5 {[%clk 0:02:58.7]} 3... cxd5 {[%clk 0:02:59.2]} 4.
Bd3 {[%clk 0:02:59.3]} 4... Nc6 {[%clk 0:02:58]} 5. c3 {[%clk 0:02:59.7]} 5...
Nf6 {[%clk 0:02:57.7]} 6. Bf4 {[%clk 0:02:59.2]} 6... Bg4 {[%clk 0:02:57.1]} 7.
Qb3 {[%clk 0:02:56]} 7... Qd7 {[%clk 0:02:56.9]} 8. Nd2 {[%clk 0:02:53.1]} 8...
e6 {[%clk 0:02:56.9]} 9. Ngf3 {[%clk 0:02:50.3]} 9... Bd6 {[%clk 0:02:56.9]} 10.
Bxd6 {[%clk 0:02:44.9]} 10... Qxd6 {[%clk 0:02:57.8]} 11. O-O {[%clk 0:02:45.4]}
11... O-O {[%clk 0:02:57.5]} 12. Rae1 {[%clk 0:02:45.5]} 12... Rab8 {[%clk
0:02:53.2]} 13. h3 {[%clk 0:02:43.5]} 13... Bh5 {[%clk 0:02:52.5]} 14. Ne5
{[%clk 0:02:41.8]} 14... Qc7 {[%clk 0:02:52]} 15. f4 {[%clk 0:02:40.5]} 15... b5
{[%clk 0:02:44.1]} 16. Ndf3 {[%clk 0:02:11]} 16... Bxf3 {[%clk 0:02:27.1]} 17.
Rxf3 {[%clk 0:02:03.5]} 17... Rfc8 {[%clk 0:02:09.8]} 18. Qd1 {[%clk 0:01:54.6]}
18... b4 {[%clk 0:02:08]} 19. f5 {[%clk 0:01:44.1]} 19... bxc3 {[%clk
0:02:04.9]} 20. bxc3 {[%clk 0:01:43.8]} 20... exf5 {[%clk 0:01:40.7]} 21. Bxf5
{[%clk 0:01:43.8]} 21... Re8 {[%clk 0:01:37.6]} 22. Rfe3 {[%clk 0:01:33.7]}
22... g6 {[%clk 0:01:03.4]} 23. Ng4 {[%clk 0:01:00.4]} 23... Rxe3 {[%clk
0:00:47.9]} 24. Nxf6+ {[%clk 0:01:00.4]} 24... Kg7 {[%clk 0:00:48.3]} 25. Nh5+
{[%clk 0:00:56.4]} 25... Kh8 {[%clk 0:00:36.2]} 26. Rxe3 {[%clk 0:00:56.2]}
26... gxf5 {[%clk 0:00:36.4]} 27. Nf6 {[%clk 0:00:48.8]} 27... Qd6 {[%clk
0:00:33]} 28. Ne8 {[%clk 0:00:38.6]} 28... Qh6 {[%clk 0:00:18.4]} 29. Re1 {[%clk
0:00:25.9]} 29... Qf8 {[%clk 0:00:12]} 30. Nf6 {[%clk 0:00:22.7]} 30... Qd6
{[%clk 0:00:11.8]} 31. Ne8 {[%clk 0:00:20.2]} 31... Qg3 {[%clk 0:00:12.3]} 32.
Qe2 {[%clk 0:00:15.8]} 32... f4 {[%clk 0:00:09.5]} 33. Nf6 {[%clk 0:00:15.6]}
33... Qg6 {[%clk 0:00:07.9]} 34. Ng4 {[%clk 0:00:11.8]} 34... Rg8 {[%clk
0:00:06]} 35. Ne5 {[%clk 0:00:09.6]} 35... Nxe5 {[%clk 0:00:04.3]} 36. Qxe5+
{[%clk 0:00:10.5]} 36... f6 {[%clk 0:00:04.6]} 37. Qxd5 {[%clk 0:00:10.5]} 37...
Qg3 {[%clk 0:00:03.2]} 38. Rf1 {[%clk 0:00:09.8]} 38... Qxh3 {[%clk 0:00:01.7]}
39. Qf3 {[%clk 0:00:08.6]} 39... Qh4 {[%clk 0:00:01.5]} 40. Qxf4 {[%clk
0:00:08.1]} 40... Qxf4 {[%clk 0:00:01.9]} 41. Rxf4 {[%clk 0:00:09]} 41... Rc8
{[%clk 0:00:02.5]} 42. Rxf6 {[%clk 0:00:08.6]} 42... Rxc3 {[%clk 0:00:02.9]} 43.
Ra6 {[%clk 0:00:09.2]} 43... Rd3 {[%clk 0:00:02.9]} 44. Rxa7 {[%clk 0:00:09]}
44... Rxd4 {[%clk 0:00:03.1]} 45. a4 {[%clk 0:00:09.6]} 45... Kg8 {[%clk
0:00:03.3]} 46. a5 {[%clk 0:00:09.8]} 46... Ra4 {[%clk 0:00:03.3]} 47. a6 {[%clk
0:00:09.4]} 47... Ra3 {[%clk 0:00:03.5]} 48. Kf2 {[%clk 0:00:09.8]} 48... Ra2+
{[%clk 0:00:03.6]} 49. Kf3 {[%clk 0:00:09.7]} 49... Ra3+ {[%clk 0:00:04.3]} 50.
Kf4 {[%clk 0:00:09.9]} 50... Ra2 {[%clk 0:00:04.7]} 51. g4 {[%clk 0:00:10]}
51... Ra4+ {[%clk 0:00:04.6]} 52. Kf5 {[%clk 0:00:10]} 52... Ra5+ {[%clk
0:00:03.7]} 53. Kf6 {[%clk 0:00:09.9]} 53... h6 {[%clk 0:00:01.6]} 54. Kg6
{[%clk 0:00:10.2]} 54... Rg5+ {[%clk 0:00:01.4]} 55. Kxh6 {[%clk 0:00:09.1]}
55... Rxg4 {[%clk 0:00:02]} 56. Rb7 {[%clk 0:00:09.5]} 56... Rh4+ {[%clk
0:00:02]} 57. Kg5 {[%clk 0:00:08.8]} 57... Ra4 {[%clk 0:00:01.9]} 58. a7 {[%clk
0:00:09.2]} 1-0

[Event "*** Titled Tuesday Blitz"]
[Site "Chess.com"]
[Date "2021.03.09"]
[Round "4"]
[White "suyu28"]
[Black "SanQui14"]
[Result "0-1"]
[WhiteElo "2621"]
[BlackElo "2383"]
[TimeControl "180+1"]
[EndTime "10:42:54 PST"]
[Termination "SanQui14 won on time"]

1. e4 {[%clk 0:02:57.2]} 1... c5 {[%clk 0:03:00]} 2. Nf3 {[%clk 0:02:57]} 2...
g6 {[%clk 0:03:00.1]} 3. d4 {[%clk 0:02:57.1]} 3... cxd4 {[%clk 0:03:00.6]} 4.
Nxd4 {[%clk 0:02:57.5]} 4... Nc6 {[%clk 0:03:00.7]} 5. c4 {[%clk 0:02:57.5]}
5... Nf6 {[%clk 0:03:00.9]} 6. Nc3 {[%clk 0:02:57]} 6... Nxd4 {[%clk 0:03:01.6]}
7. Qxd4 {[%clk 0:02:56.9]} 7... d6 {[%clk 0:03:02.3]} 8. Be2 {[%clk 0:02:56.9]}
8... Bg7 {[%clk 0:03:02.6]} 9. O-O {[%clk 0:02:57.1]} 9... O-O {[%clk
0:03:02.7]} 10. f3 {[%clk 0:02:55.9]} 10... Be6 {[%clk 0:03:02.3]} 11. Qd2
{[%clk 0:02:54]} 11... a5 {[%clk 0:03:02]} 12. a4 {[%clk 0:02:37.3]} 12... Qc7
{[%clk 0:02:57]} 13. Nd5 {[%clk 0:02:25.7]} 13... Bxd5 {[%clk 0:02:56.2]} 14.
exd5 {[%clk 0:02:23.8]} 14... Nd7 {[%clk 0:02:56.3]} 15. Kh1 {[%clk 0:02:22.2]}
15... Nb6 {[%clk 0:02:48.8]} 16. Qd3 {[%clk 0:02:08.6]} 16... Rac8 {[%clk
0:02:47.4]} 17. Bg5 {[%clk 0:02:00.3]} 17... Qxc4 {[%clk 0:02:26.8]} 18. Qxc4
{[%clk 0:01:56.7]} 18... Nxc4 {[%clk 0:02:26.1]} 19. Bxc4 {[%clk 0:01:53.9]}
19... Rxc4 {[%clk 0:02:25.5]} 20. Bxe7 {[%clk 0:01:54.8]} 20... Re8 {[%clk
0:02:22.8]} 21. Bxd6 {[%clk 0:01:54.5]} 21... Rd8 {[%clk 0:02:22.5]} 22. b3
{[%clk 0:01:22.1]} 22... Rc2 {[%clk 0:02:06]} 23. Be7 {[%clk 0:01:19.8]} 23...
Rxd5 {[%clk 0:02:04.2]} 24. Rad1 {[%clk 0:01:14.7]} 24... Rdd2 {[%clk
0:01:43.9]} 25. Rxd2 {[%clk 0:00:37.4]} 25... Rxd2 {[%clk 0:01:44.8]} 26. b4
{[%clk 0:00:37.5]} 26... axb4 {[%clk 0:01:33.2]} 27. Bxb4 {[%clk 0:00:37.1]}
27... Rd4 {[%clk 0:01:32]} 28. Rb1 {[%clk 0:00:34.4]} 28... h5 {[%clk
0:01:16.5]} 29. a5 {[%clk 0:00:25.4]} 29... Rd7 {[%clk 0:01:12]} 30. Kg1 {[%clk
0:00:23.9]} 30... Bd4+ {[%clk 0:01:10]} 31. Kf1 {[%clk 0:00:23.9]} 31... Be5
{[%clk 0:01:08.9]} 32. g3 {[%clk 0:00:18.6]} 32... Rd3 {[%clk 0:01:07.3]} 33.
Ke2 {[%clk 0:00:17.5]} 33... Rd7 {[%clk 0:01:06]} 34. Bd2 {[%clk 0:00:16.6]}
34... h4 {[%clk 0:01:04.9]} 35. f4 {[%clk 0:00:14.5]} 35... Bf6 {[%clk
0:01:02.4]} 36. g4 {[%clk 0:00:14.6]} 36... Kf8 {[%clk 0:00:54.8]} 37. Rb5
{[%clk 0:00:14.7]} 37... Ke7 {[%clk 0:00:52.2]} 38. Bb4+ {[%clk 0:00:14.6]}
38... Kd8 {[%clk 0:00:50.5]} 39. Bd2 {[%clk 0:00:14.1]} 39... Kc7 {[%clk
0:00:49.3]} 40. Be3 {[%clk 0:00:14.5]} 40... Bd4 {[%clk 0:00:44.9]} 41. Bd2
{[%clk 0:00:11.5]} 41... Re7+ {[%clk 0:00:42.4]} 42. Kd3 {[%clk 0:00:11.4]}
42... Rd7 {[%clk 0:00:41.7]} 43. Ke2 {[%clk 0:00:10.2]} 43... Kc6 {[%clk
0:00:41.3]} 44. Rb3 {[%clk 0:00:09.6]} 44... Re7+ {[%clk 0:00:40.7]} 45. Kf3
{[%clk 0:00:09.7]} 45... Kd5 {[%clk 0:00:23.2]} 46. Rb4 {[%clk 0:00:08.8]} 46...
Bc5 {[%clk 0:00:20.7]} 47. Rb1 {[%clk 0:00:06.9]} 47... Kd4 {[%clk 0:00:19]} 48.
h3 {[%clk 0:00:04.9]} 48... Kd3 {[%clk 0:00:19.1]} 49. Rb5 {[%clk 0:00:03.5]}
49... Bd4 {[%clk 0:00:10.3]} 50. Bb4 {[%clk 0:00:02.5]} 50... Re3+ {[%clk
0:00:09.4]} 51. Kg2 {[%clk 0:00:02.5]} 51... Kc4 {[%clk 0:00:04.5]} 52. Kh1
{[%clk 0:00:03.4]} 52... Kxb5 {[%clk 0:00:04.2]} 53. Bd2 {[%clk 0:00:03.2]}
53... Re1+ {[%clk 0:00:03.7]} 54. Kg2 {[%clk 0:00:03.7]} 54... Re2+ {[%clk
0:00:03.6]} 55. Kf3 {[%clk 0:00:03.1]} 55... Rxd2 {[%clk 0:00:04]} 56. g5 {[%clk
0:00:03.7]} 56... Rh2 {[%clk 0:00:03.6]} 57. Kg4 {[%clk 0:00:03.9]} 57... Bf2
{[%clk 0:00:03.8]} 58. f5 {[%clk 0:00:03.6]} 58... gxf5+ {[%clk 0:00:03.9]} 59.
Kh5 {[%clk 0:00:01.2]} 59... Rxh3 {[%clk 0:00:03.6]} 60. Kh6 {[%clk 0:00:01.1]}
60... Rg3 {[%clk 0:00:04.2]} 0-1

[Event "*** Titled Tuesday Blitz"]
[Site "Chess.com"]
[Date "2021.03.09"]
[Round "4"]
[White "K_A_S_T_O_R"]
[Black "wonderfultime"]
[Result "1-0"]
[WhiteElo "2807"]
[BlackElo "2971"]
[TimeControl "180+1"]
[EndTime "10:42:55 PST"]
[Termination "K_A_S_T_O_R won on time"]

1. e4 {[%clk 0:03:00.9]} 1... c5 {[%clk 0:02:54.6]} 2. Nf3 {[%clk 0:03:00.1]}
2... Nf6 {[%clk 0:02:55.2]} 3. e5 {[%clk 0:02:52]} 3... Nd5 {[%clk 0:02:55.6]}
4. Nc3 {[%clk 0:02:52.5]} 4... e6 {[%clk 0:02:56.2]} 5. Nxd5 {[%clk 0:02:47.9]}
5... exd5 {[%clk 0:02:57.1]} 6. d4 {[%clk 0:02:48]} 6... Nc6 {[%clk 0:02:57.6]}
7. dxc5 {[%clk 0:02:42.1]} 7... Bxc5 {[%clk 0:02:58.5]} 8. Bd3 {[%clk 0:02:42]}
8... d6 {[%clk 0:02:58.7]} 9. exd6 {[%clk 0:02:41.1]} 9... Qxd6 {[%clk
0:02:59.6]} 10. O-O {[%clk 0:02:38.3]} 10... O-O {[%clk 0:03:00]} 11. Kh1 {[%clk
0:02:19.2]} 11... Re8 {[%clk 0:02:56.4]} 12. h3 {[%clk 0:02:17]} 12... Bb6
{[%clk 0:02:36.9]} 13. c3 {[%clk 0:02:15.5]} 13... Bc7 {[%clk 0:02:30.3]} 14.
Bg5 {[%clk 0:02:05]} 14... h6 {[%clk 0:01:56.3]} 15. Bh4 {[%clk 0:02:04]} 15...
Qc5 {[%clk 0:01:56.9]} 16. Re1 {[%clk 0:01:52.4]} 16... Bd7 {[%clk 0:01:55.4]}
17. Qd2 {[%clk 0:01:44.8]} 17... a5 {[%clk 0:01:33.9]} 18. Bg3 {[%clk
0:01:37.6]} 18... Bxg3 {[%clk 0:01:16.1]} 19. fxg3 {[%clk 0:01:38.5]} 19... a4
{[%clk 0:01:17]} 20. a3 {[%clk 0:01:35.7]} 20... Rad8 {[%clk 0:01:11.6]} 21.
Rxe8+ {[%clk 0:01:33.6]} 21... Rxe8 {[%clk 0:01:09.8]} 22. Re1 {[%clk
0:01:33.8]} 22... Re6 {[%clk 0:01:06]} 23. Rxe6 {[%clk 0:01:26.6]} 23... Bxe6
{[%clk 0:01:06.1]} 24. Qf4 {[%clk 0:01:23.2]} 24... Qf2 {[%clk 0:00:28.3]} 25.
Qxa4 {[%clk 0:01:16.9]} 25... g5 {[%clk 0:00:28.3]} 26. Qc2 {[%clk 0:00:37]}
26... Qxg3 {[%clk 0:00:28.4]} 27. Qe2 {[%clk 0:00:36.4]} 27... Qf4 {[%clk
0:00:26]} 28. Qd2 {[%clk 0:00:34.2]} 28... Qg3 {[%clk 0:00:22.5]} 29. Qe1 {[%clk
0:00:32.3]} 29... Qf4 {[%clk 0:00:21.1]} 30. Qd2 {[%clk 0:00:32]} 30... Qc7
{[%clk 0:00:21.4]} 31. b4 {[%clk 0:00:26.6]} 31... Ne7 {[%clk 0:00:13.2]} 32.
Nd4 {[%clk 0:00:25.7]} 32... Qg3 {[%clk 0:00:11.7]} 33. a4 {[%clk 0:00:19.9]}
33... Bd7 {[%clk 0:00:07.6]} 34. a5 {[%clk 0:00:19.3]} 34... Nc8 {[%clk
0:00:04.6]} 35. Bf1 {[%clk 0:00:16.1]} 35... Nd6 {[%clk 0:00:03.3]} 36. Ne2
{[%clk 0:00:16]} 36... Qe5 {[%clk 0:00:03.3]} 37. Qd4 {[%clk 0:00:15.5]} 37...
Qe6 {[%clk 0:00:03.7]} 38. Kg1 {[%clk 0:00:15.7]} 38... Nb5 {[%clk 0:00:03.7]}
39. Qd3 {[%clk 0:00:15.2]} 39... Bc6 {[%clk 0:00:02.9]} 40. Nd4 {[%clk 0:00:15]}
40... Nxd4 {[%clk 0:00:03.2]} 41. Qxd4 {[%clk 0:00:15.9]} 41... Qd7 {[%clk
0:00:03.1]} 42. Qc5 {[%clk 0:00:15.4]} 42... Qe8 {[%clk 0:00:03]} 43. b5 {[%clk
0:00:15]} 43... Bd7 {[%clk 0:00:03.5]} 44. a6 {[%clk 0:00:14.2]} 44... bxa6
{[%clk 0:00:03.1]} 45. bxa6 {[%clk 0:00:14.8]} 45... Bc6 {[%clk 0:00:03.7]} 46.
a7 {[%clk 0:00:15.3]} 46... Ba8 {[%clk 0:00:04]} 47. Qd4 {[%clk 0:00:12.8]}
47... Qe7 {[%clk 0:00:03.2]} 48. Kf2 {[%clk 0:00:11.3]} 48... Qc7 {[%clk
0:00:02.6]} 49. Bd3 {[%clk 0:00:10.9]} 49... Qe7 {[%clk 0:00:02.9]} 50. g3
{[%clk 0:00:10.7]} 50... Qc7 {[%clk 0:00:03.1]} 51. h4 {[%clk 0:00:11]} 51...
Qe7 {[%clk 0:00:03.1]} 52. hxg5 {[%clk 0:00:10.6]} 52... Qxg5 {[%clk 0:00:04]}
53. Qe3 {[%clk 0:00:10.1]} 53... Qf6+ {[%clk 0:00:04.1]} 54. Ke2 {[%clk
0:00:10.1]} 54... Kg7 {[%clk 0:00:04.3]} 55. Qd4 {[%clk 0:00:09]} 55... h5
{[%clk 0:00:03.6]} 56. Ke3 {[%clk 0:00:08.6]} 56... Bb7 {[%clk 0:00:03]} 57.
Qxf6+ {[%clk 0:00:07]} 57... Kxf6 {[%clk 0:00:03.9]} 58. Kf4 {[%clk 0:00:07.8]}
58... Ba8 {[%clk 0:00:03.6]} 59. Be2 {[%clk 0:00:08]} 59... Kg6 {[%clk
0:00:03.4]} 60. Bf3 {[%clk 0:00:08.3]} 60... f6 {[%clk 0:00:03.4]} 61. c4 {[%clk
0:00:07.5]} 1-0

[Event "*** Titled Tuesday Blitz"]
[Site "Chess.com"]
[Date "2021.03.09"]
[Round "4"]
[White "Natalya_Buksa"]
[Black "almo64"]
[Result "1/2-1/2"]
[WhiteElo "2529"]
[BlackElo "2735"]
[TimeControl "180+1"]
[EndTime "10:42:55 PST"]
[Termination "Game drawn by repetition"]

1. e4 {[%clk 0:03:00.9]} 1... c5 {[%clk 0:02:47.9]} 2. c3 {[%clk 0:02:59.8]}
2... d5 {[%clk 0:02:46.9]} 3. exd5 {[%clk 0:02:59.9]} 3... Qxd5 {[%clk 0:02:47]}
4. d4 {[%clk 0:03:00.8]} 4... Nf6 {[%clk 0:02:47]} 5. Nf3 {[%clk 0:03:01.3]}
5... Bg4 {[%clk 0:02:47.2]} 6. dxc5 {[%clk 0:02:59.8]} 6... Qxd1+ {[%clk
0:02:44.3]} 7. Kxd1 {[%clk 0:03:00.7]} 7... e5 {[%clk 0:02:44.1]} 8. b4 {[%clk
0:03:00.4]} 8... Nbd7 {[%clk 0:02:27.9]} 9. Be3 {[%clk 0:02:56.2]} 9... O-O-O
{[%clk 0:02:27.2]} 10. Kc2 {[%clk 0:02:54.4]} 10... Nd5 {[%clk 0:02:24.9]} 11.
Bc4 {[%clk 0:02:41.5]} 11... Be6 {[%clk 0:02:16.9]} 12. Nbd2 {[%clk 0:02:39.8]}
12... f6 {[%clk 0:02:12]} 13. a4 {[%clk 0:02:26.2]} 13... a5 {[%clk 0:02:11.8]}
14. Kb3 {[%clk 0:02:18.4]} 14... Be7 {[%clk 0:02:10.3]} 15. Rhd1 {[%clk
0:02:15.3]} 15... g5 {[%clk 0:02:09.9]} 16. h3 {[%clk 0:02:12.8]} 16... h6
{[%clk 0:02:01.6]} 17. Rac1 {[%clk 0:01:40.4]} 17... Rhe8 {[%clk 0:01:48.1]} 18.
Nb1 {[%clk 0:01:39.1]} 18... Nb8 {[%clk 0:01:44]} 19. Na3 {[%clk 0:01:17.4]}
19... Nc6 {[%clk 0:01:43]} 20. Bd2 {[%clk 0:01:17.6]} 20... e4 {[%clk
0:01:37.9]} 21. Nd4 {[%clk 0:01:03.5]} 21... Nxd4+ {[%clk 0:01:16.9]} 22. cxd4
{[%clk 0:01:03.3]} 22... Nc7 {[%clk 0:01:17]} 23. Bxe6+ {[%clk 0:00:48.6]} 23...
Nxe6 {[%clk 0:01:16.5]} 24. Bc3 {[%clk 0:00:49.5]} 24... Rd5 {[%clk 0:01:13.1]}
25. Nc4 {[%clk 0:00:48.2]} 25... Kb8 {[%clk 0:01:06.2]} 26. Ne3 {[%clk
0:00:45.1]} 26... Rdd8 {[%clk 0:01:00.1]} 27. d5 {[%clk 0:00:45.5]} 27... axb4
{[%clk 0:00:59.8]} 28. Bxb4 {[%clk 0:00:45]} 28... Nf4 {[%clk 0:00:59.7]} 29. d6
{[%clk 0:00:25.6]} 29... Bf8 {[%clk 0:00:59.6]} 30. Rc4 {[%clk 0:00:19.5]} 30...
Nd3 {[%clk 0:00:58.4]} 31. Rd2 {[%clk 0:00:19.2]} 31... Re5 {[%clk 0:00:55.7]}
32. Ng4 {[%clk 0:00:18]} 32... Re6 {[%clk 0:00:50.7]} 33. Bc3 {[%clk 0:00:14.5]}
33... f5 {[%clk 0:00:48]} 34. Ne3 {[%clk 0:00:14.6]} 34... f4 {[%clk 0:00:44.7]}
35. Nf5 {[%clk 0:00:11.2]} 35... Rc8 {[%clk 0:00:41.4]} 36. Bd4 {[%clk
0:00:10.1]} 36... Ne5 {[%clk 0:00:31.9]} 37. Rc1 {[%clk 0:00:06.8]} 37... Nc6
{[%clk 0:00:30.1]} 38. d7 {[%clk 0:00:03.9]} 38... Rd8 {[%clk 0:00:25.9]} 39.
Bb2 {[%clk 0:00:03.9]} 39... Kc7 {[%clk 0:00:24.6]} 40. Rcd1 {[%clk 0:00:02.7]}
40... Nb8 {[%clk 0:00:22.2]} 41. Rd5 {[%clk 0:00:01.2]} 41... Rxd7 {[%clk
0:00:20.6]} 42. Rxd7+ {[%clk 0:00:01.2]} 42... Nxd7 {[%clk 0:00:20.5]} 43. Kc4
{[%clk 0:00:02.1]} 43... Rc6 {[%clk 0:00:13.8]} 44. Nd4 {[%clk 0:00:02.1]} 44...
Rxc5+ {[%clk 0:00:13.7]} 45. Kb3 {[%clk 0:00:02.5]} 45... Kc8 {[%clk 0:00:09.9]}
46. Ne6 {[%clk 0:00:02.7]} 46... Rc6 {[%clk 0:00:10.2]} 47. Nxf8 {[%clk
0:00:02.9]} 47... Nxf8 {[%clk 0:00:09.9]} 48. Re1 {[%clk 0:00:02.8]} 48... Re6
{[%clk 0:00:09.7]} 49. Kc4 {[%clk 0:00:02.8]} 49... Nd7 {[%clk 0:00:09.6]} 50.
Kd5 {[%clk 0:00:03.2]} 50... Rb6 {[%clk 0:00:09.3]} 51. Bd4 {[%clk 0:00:03]}
51... Rb4 {[%clk 0:00:08.3]} 52. Rxe4 {[%clk 0:00:03.3]} 52... Rxa4 {[%clk
0:00:08.7]} 53. Re8+ {[%clk 0:00:03.1]} 53... Kc7 {[%clk 0:00:09.1]} 54. Rh8
{[%clk 0:00:03.4]} 54... Ra5+ {[%clk 0:00:09.4]} 55. Ke4 {[%clk 0:00:03.1]}
55... Ra6 {[%clk 0:00:09.6]} 56. g3 {[%clk 0:00:02.2]} 56... fxg3 {[%clk
0:00:09.4]} 57. fxg3 {[%clk 0:00:03.1]} 57... Ra3 {[%clk 0:00:09.7]} 58. Rh7
{[%clk 0:00:02.4]} 58... b5 {[%clk 0:00:08.1]} 59. Rxh6 {[%clk 0:00:02.6]} 59...
Rxg3 {[%clk 0:00:07.4]} 60. Rh7 {[%clk 0:00:03.1]} 60... Kc6 {[%clk 0:00:07]}
61. Rh6+ {[%clk 0:00:02.9]} 61... Kc7 {[%clk 0:00:07.4]} 62. Rh7 {[%clk
0:00:03.3]} 62... Kc6 {[%clk 0:00:07.8]} 63. Rh6+ {[%clk 0:00:03.5]} 63... Kc7
{[%clk 0:00:08.3]} 1/2-1/2

[Event "*** Titled Tuesday Blitz"]
[Site "Chess.com"]
[Date "2021.03.09"]
[Round "4"]
[White "chescomhuynya"]
[Black "Soltan49"]
[Result "1-0"]
[WhiteElo "2568"]
[BlackElo "2200"]
[TimeControl "180+1"]
[EndTime "10:42:55 PST"]
[Termination "chescomhuynya won by resignation"]

1. d4 {[%clk 0:02:56.7]} 1... Nf6 {[%clk 0:02:59.1]} 2. c4 {[%clk 0:02:54.5]}
2... e6 {[%clk 0:02:58.6]} 3. g3 {[%clk 0:02:54.2]} 3... c5 {[%clk 0:02:58]} 4.
Nf3 {[%clk 0:02:54.3]} 4... cxd4 {[%clk 0:02:57.8]} 5. Nxd4 {[%clk 0:02:55.2]}
5... Nc6 {[%clk 0:02:56.8]} 6. Bg2 {[%clk 0:02:54.5]} 6... d5 {[%clk 0:02:55.8]}
7. O-O {[%clk 0:02:53.4]} 7... Be7 {[%clk 0:02:54.3]} 8. Nc3 {[%clk 0:02:52]}
8... O-O {[%clk 0:02:54.1]} 9. Bf4 {[%clk 0:02:25.7]} 9... Qb6 {[%clk
0:02:37.6]} 10. Nxc6 {[%clk 0:02:08.4]} 10... bxc6 {[%clk 0:02:36.6]} 11. e4
{[%clk 0:01:45.7]} 11... Qxb2 {[%clk 0:01:54.4]} 12. Qb3 {[%clk 0:01:45.4]}
12... Qxb3 {[%clk 0:01:50.9]} 13. axb3 {[%clk 0:01:46.3]} 13... d4 {[%clk
0:01:43]} 14. Ne2 {[%clk 0:01:44.5]} 14... e5 {[%clk 0:01:39.4]} 15. Bxe5 {[%clk
0:01:44.3]} 15... c5 {[%clk 0:01:39.9]} 16. Bxf6 {[%clk 0:01:43.5]} 16... gxf6
{[%clk 0:01:40.8]} 17. e5 {[%clk 0:01:44.4]} 17... Rb8 {[%clk 0:01:40.1]} 18.
Rxa7 {[%clk 0:01:41.7]} 18... Bd8 {[%clk 0:01:37.3]} 19. exf6 {[%clk 0:01:35.2]}
19... Rxb3 {[%clk 0:01:24.7]} 20. Bd5 {[%clk 0:01:33.8]} 20... Bxf6 {[%clk
0:01:22]} 21. Nf4 {[%clk 0:01:34]} 21... d3 {[%clk 0:01:11.7]} 22. Rd1 {[%clk
0:01:34]} 22... Bf5 {[%clk 0:01:11.1]} 23. h3 {[%clk 0:01:24.4]} 23... Bd4
{[%clk 0:01:03.7]} 24. g4 {[%clk 0:01:21.7]} 24... Bg6 {[%clk 0:01:03.5]} 25.
Nxg6 {[%clk 0:01:19.8]} 25... hxg6 {[%clk 0:01:02]} 26. Ra2 {[%clk 0:01:12.5]}
26... Re8 {[%clk 0:00:55]} 27. Ra7 {[%clk 0:01:12.1]} 27... Rf8 {[%clk 0:00:52]}
28. Rd2 {[%clk 0:01:12.5]} 28... Rb2 {[%clk 0:00:43.5]} 29. Rxd3 {[%clk
0:01:10.4]} 29... Bxf2+ {[%clk 0:00:42.5]} 30. Kf1 {[%clk 0:01:10.7]} 30... Bd4
{[%clk 0:00:38.2]} 31. Rf3 {[%clk 0:01:10.4]} 31... Kg7 {[%clk 0:00:24.5]} 32.
g5 {[%clk 0:00:53.7]} 32... Rb1+ {[%clk 0:00:20.2]} 33. Ke2 {[%clk 0:00:50.8]}
33... Re8+ {[%clk 0:00:17.8]} 34. Kd3 {[%clk 0:00:47.7]} 34... Rb3+ {[%clk
0:00:17.7]} 35. Kc2 {[%clk 0:00:47.9]} 35... Rb2+ {[%clk 0:00:18]} 36. Kd1
{[%clk 0:00:35.7]} 36... Rb1+ {[%clk 0:00:15.4]} 37. Kd2 {[%clk 0:00:34.3]}
37... Rb2+ {[%clk 0:00:14.5]} 38. Kd3 {[%clk 0:00:33.6]} 38... Rb3+ {[%clk
0:00:14.2]} 39. Kc2 {[%clk 0:00:34.1]} 39... Rxf3 {[%clk 0:00:05.9]} 40. Bxf3
{[%clk 0:00:33.5]} 40... Rf8 {[%clk 0:00:03.5]} 41. Kd3 {[%clk 0:00:30.3]} 41...
Bf2 {[%clk 0:00:02.7]} 42. Ke4 {[%clk 0:00:28.7]} 42... Bh4 {[%clk 0:00:03.1]}
43. Kf4 {[%clk 0:00:28.9]} 43... Bf2 {[%clk 0:00:03.5]} 44. Bd5 {[%clk
0:00:28.9]} 44... Bd4 {[%clk 0:00:04.4]} 45. Rc7 {[%clk 0:00:26.4]} 45... Bg1
{[%clk 0:00:03.9]} 46. Kg4 {[%clk 0:00:24]} 46... Bd4 {[%clk 0:00:03.6]} 47. h4
{[%clk 0:00:24.2]} 47... Be5 {[%clk 0:00:03.9]} 48. Rxc5 {[%clk 0:00:23.6]}
48... Re8 {[%clk 0:00:02.8]} 49. Rb5 {[%clk 0:00:23.1]} 49... Rc8 {[%clk
0:00:02]} 50. Rb7 {[%clk 0:00:23.1]} 50... Rc7 {[%clk 0:00:02]} 51. Rb3 {[%clk
0:00:20.8]} 51... Bd4 {[%clk 0:00:02.5]} 52. Rf3 {[%clk 0:00:20.9]} 52... Bc5
{[%clk 0:00:03.4]} 53. h5 {[%clk 0:00:21]} 53... Re7 {[%clk 0:00:04.3]} 54. h6+
{[%clk 0:00:20.3]} 54... Kh7 {[%clk 0:00:04.8]} 55. Rxf7+ {[%clk 0:00:18.1]}
55... Rxf7 {[%clk 0:00:05.1]} 56. Bxf7 {[%clk 0:00:19]} 56... Bd6 {[%clk
0:00:05.1]} 57. Be8 {[%clk 0:00:18.4]} 57... Bc5 {[%clk 0:00:06]} 58. Kf4 {[%clk
0:00:18.5]} 58... Bd6+ {[%clk 0:00:06.7]} 59. Ke4 {[%clk 0:00:18.9]} 59... Bc5
{[%clk 0:00:07.2]} 60. Kd5 {[%clk 0:00:18.4]} 60... Bg1 {[%clk 0:00:07.8]} 61.
c5 {[%clk 0:00:18.5]} 61... Kg8 {[%clk 0:00:08.1]} 62. Bxg6 {[%clk 0:00:17.9]}
62... Kf8 {[%clk 0:00:09]} 63. c6 {[%clk 0:00:17.8]} 63... Ke7 {[%clk
0:00:09.9]} 64. h7 {[%clk 0:00:18]} 64... Kd8 {[%clk 0:00:10.8]} 65. h8=Q+
{[%clk 0:00:18.4]} 65... Kc7 {[%clk 0:00:11.7]} 66. Qe5+ {[%clk 0:00:18.2]} 1-0